fUSD/lending_fUSD_20240324
["ID","MTS","AMOUNT","RATE_DAILY","PERIOD"]
[320325008,1711291414293,-637.19,0.00019757,2]
[320325009,1711291414315,-500.0,0.00019757,2]
[320325010,1711291414341,-500.0,0.00019757,2]
[320325011,1711291414366,-5994.56,0.00019757,2]
[320325012,1711291414391,-783.27,0.00019757,2]
[320325013,1711291414415,-1039.16,0.00019757,2]
[320325014,1711291414437,-530.99,0.00019757,2]
[320325015,1711291414459,-500.0,0.00019757,2]
[320325016,1711291414481,-534.86,0.00019757,2]
[320325017,1711291414503,-500.0,0.00019757,2]
[320325018,1711291414525,-500.0,0.00019757,2]
[320325019,1711291414546,-500.0,0.00019757,2]
[320325020,1711291414568,-500.0,0.00019757,2]
[320325021,1711291414591,-317.21598348,0.00019757,2]
[320325022,1711291414619,-150.0,0.00019758,2]
[320325023,1711291414646,-158.09371511,0.0001976,2]
[320325024,1711291414676,-150.0,0.00019761,2]
[320325025,1711291414698,-220.06831271,0.00019763,2]
[320325026,1711291414722,-165.21383244,0.00019776,2]
[320325027,1711291414752,-150.0,0.00019778,2]
[320325028,1711291414779,-716.56936019,0.00019783,2]
[320325029,1711291414806,-424.06686722,0.00019786,2]
[320325030,1711291414833,-150.0,0.00019795,2]
[320325031,1711291414862,-277.10244708,0.00019796,2]
[320325032,1711291414888,-498.36170346,0.00019796,2]
[320325033,1711291414912,-520.479,0.00019796,2]
[320325034,1711291414935,-548.19956647,0.00019796,2]
[320325035,1711291414960,-841.73343008,0.00019796,2]
[320325036,1711291414986,-183.52789745,0.00019796,2]
[320325037,1711291415011,-2632.67215277,0.00019797,2]
[320325038,1711291415042,-150.0,0.00019797,2]
[320325039,1711291415068,-500.0,0.00019797,2]
[320325040,1711291415097,-891.44,0.00019797,2]
[320325041,1711291415120,-500.0,0.00019797,2]
[320325042,1711291415145,-500.0,0.00019797,2]
[320325043,1711291415173,-500.0,0.00019797,2]
[320325044,1711291415201,-878.97,0.00019797,2]
[320325045,1711291415229,-500.0,0.00019797,2]
[320325046,1711291415257,-500.0,0.00019797,2]
[320325047,1711291415283,-500.0,0.00019797,2]
[320325048,1711291415309,-500.0,0.00019797,2]
[320325049,1711291415339,-576.02,0.00019797,2]
[320325050,1711291415364,-500.0,0.00019797,2]
[320325051,1711291415391,-2245.52,0.00019797,2]
[320325052,1711291415418,-627.27,0.00019797,2]
[320325053,1711291415445,-1655.54,0.00019797,2]
[320325054,1711291415473,-1168.29,0.00019797,2]
[320325055,1711291415501,-993.82,0.00019797,2]
[320325056,1711291415527,-1481.33,0.00019797,2]
[320325057,1711291415551,-500.0,0.00019797,2]
[320325058,1711291415577,-1329.36,0.00019797,2]
[320325059,1711291415603,-824.64,0.00019797,2]
[320325060,1711291415629,-895.45,0.00019797,2]
[320325061,1711291415656,-1123.56,0.00019797,2]
[320325062,1711291415688,-3110.5,0.00019797,2]
[320325063,1711291415712,-500.0,0.00019797,2]
[320325064,1711291415740,-500.0,0.00019797,2]
[320325065,1711291415765,-500.0,0.00019797,2]
[320325066,1711291415790,-500.0,0.00019797,2]
[320325067,1711291415815,-500.0,0.00019797,2]
[320325068,1711291415846,-500.0,0.00019797,2]
[320325069,1711291415872,-979.71,0.00019797,2]
[320325070,1711291415898,-500.0,0.00019797,2]
[320325071,1711291415924,-500.0,0.00019797,2]
[320325072,1711291415949,-500.0,0.00019797,2]
[320325073,1711291415976,-6774.65,0.00019797,2]
[320325074,1711291416009,-2337.6,0.00019797,2]
[320325075,1711291416035,-500.0,0.00019797,2]
[320325076,1711291416061,-196.09534656,0.00019798,2]
[320325077,1711291416085,-2000.0,0.00019798,2]
[320325078,1711291416113,-200.0,0.00019798,2]
[320325079,1711291416138,-24584.51344376,0.00019798,2]
[320325080,1711291416163,-24584.51344371,0.00019798,2]
[320325081,1711291416188,-24584.51344371,0.00019798,2]
[320325082,1711291416214,-23839.78556426,0.00019798,2]
[320325083,1711291416239,-24584.51344371,0.00019798,2]
[320325084,1711291416263,-23839.78556426,0.00019798,2]
[320325085,1711291416288,-24584.51344371,0.00019798,2]
[320325086,1711291416314,-23839.78556426,0.00019798,2]
[320325087,1711291416341,-24584.51344371,0.00019798,2]
[320325088,1711291416367,-24584.51344371,0.00019798,2]
[320325089,1711291416397,-24584.51344371,0.00019798,2]
[320325090,1711291416423,-150.0,0.00019799,2]
[320325091,1711291416452,-1000.0,0.00019803,2]
[320325092,1711291416478,-154.34236366,0.00019822,2]
[320325093,1711291416505,-316.87969641,0.00019826,2]
[320325094,1711291416530,-523.0,0.00019827,2]
[320325095,1711291416559,-23839.78556426,0.00019827,2]
[320325096,1711291416583,-24584.51344371,0.00019827,2]
[320325097,1711291416612,-158.491185,0.00019837,2]
[320325098,1711291416637,-150.0,0.00019843,2]
[320325099,1711291416663,-150.0,0.00019846,2]
[320325100,1711291416688,-196.09534656,0.00019848,2]
[320325101,1711291416714,-150.0,0.0001985,2]
[320325102,1711291416739,-163.0545881,0.00019862,2]
[320325103,1711291416763,-150.0,0.00019871,2]
[320325104,1711291416788,-160.0,0.00019882,2]
[320325105,1711291416813,-618.61669024,0.00019887,2]
[320325106,1711291416838,-160.0,0.00019891,2]
[320325107,1711291416866,-150.0,0.00019893,2]
[320325108,1711291416890,-1844.93,0.00019894,2]
[320325109,1711291416914,-500.0,0.00019894,2]
[320325110,1711291416939,-1118.62,0.00019894,2]
[320325111,1711291416965,-500.0,0.00019894,2]
[320325112,1711291416989,-500.0,0.00019894,2]
[320325113,1711291417013,-500.0,0.00019894,2]
[320325114,1711291417037,-500.96761606,0.00019894,2]
[320325115,1711291417061,-500.0,0.00019894,2]
[320325116,1711291417084,-500.0,0.00019894,2]
[320325117,1711291417110,-500.0,0.00019894,2]
[320325118,1711291417135,-500.0,0.00019894,2]
[320325119,1711291417159,-500.0,0.00019894,2]
[320325120,1711291417182,-634.52,0.00019894,2]
[320325121,1711291417205,-438.95,0.00019894,2]
[320325122,1711291417227,-420.67,0.00019894,2]
[320325123,1711291417251,-500.0,0.00019894,2]
[320325124,1711291417274,-500.0,0.00019894,2]
[320325125,1711291417298,-500.0,0.00019894,2]
[320325126,1711291417322,-314.15,0.00019894,2]
[320325127,1711291417351,-500.0,0.00019894,2]
[320325128,1711291417377,-500.0,0.00019894,2]
[320325129,1711291417402,-500.0,0.00019894,2]
[320325130,1711291417430,-500.0,0.00019894,2]
[320325131,1711291417457,-268.23,0.00019894,2]
[320325132,1711291417481,-500.0,0.00019894,2]
[320325133,1711291417506,-324.94,0.00019894,2]
[320325134,1711291417530,-428.48,0.00019894,2]
[320325135,1711291417554,-500.0,0.00019894,2]
[320325136,1711291417578,-325.33,0.00019894,2]
[320325137,1711291417602,-299.06,0.00019894,2]
[320325138,1711291417625,-500.0,0.00019894,2]
[320325139,1711291417650,-500.0,0.00019894,2]
[320325140,1711291417675,-222.81,0.00019894,2]
[320325141,1711291417700,-500.0,0.00019894,2]
[320325142,1711291417725,-500.0,0.00019894,2]
[320325143,1711291418132,-500.0,0.00019894,2]
[320325144,1711291418159,-500.0,0.00019894,2]
[320325145,1711291418181,-500.0,0.00019894,2]
[320325146,1711291418206,-500.0,0.00019894,2]
[320325147,1711291418228,-500.0,0.00019894,2]
[320325148,1711291418249,-500.0,0.00019894,2]
[320325149,1711291418271,-500.0,0.00019894,2]
[320325150,1711291418293,-1687.49,0.00019894,2]
[320325151,1711291418315,-500.0,0.00019894,2]
[320325152,1711291418340,-500.0,0.00019894,2]
[320325153,1711291418363,-523.52,0.00019894,2]
[320325154,1711291418385,-508.98,0.00019894,2]
[320325155,1711291418409,-500.0,0.00019894,2]
[320325156,1711291418433,-1118.54,0.00019894,2]
[320325157,1711291418456,-3052.06,0.00019894,2]
[320325158,1711291418477,-7887.25,0.00019894,2]
[320325159,1711291418499,-163.08,0.00019894,2]
[320325160,1711291418522,-788.42,0.00019894,2]
[320325161,1711291418544,-500.0,0.00019894,2]
[320325162,1711291418569,-477.02,0.00019894,2]
[320325163,1711291418592,-500.0,0.00019894,2]
[320325164,1711291418617,-500.0,0.00019894,2]
[320325165,1711291418644,-287.06,0.00019894,2]
[320325166,1711291418669,-500.0,0.00019894,2]
[320325167,1711291418694,-500.0,0.00019894,2]
[320325168,1711291418718,-500.0,0.00019894,2]
[320325169,1711291418743,-296.0,0.00019894,2]
[320325170,1711291418764,-1019.69,0.00019894,2]
[320325171,1711291418788,-331.71,0.00019894,2]
[320325172,1711291418811,-644.74,0.00019894,2]
[320325173,1711291418837,-150.0,0.00019895,2]
[320325174,1711291418864,-1394.32261548,0.00019898,2]
[320325175,1711291418888,-196.09534656,0.00019898,2]
[320325176,1711291418912,-178.7895643,0.00019898,2]
[320325177,1711291418936,-254.1508723,0.00019898,2]
[320325178,1711291418959,-1394.32261544,0.00019898,2]
[320325179,1711291418981,-1394.32261544,0.00019898,2]
[320325180,1711291419006,-1394.32261544,0.00019899,2]
[320325181,1711291419029,-1394.32261544,0.00019899,2]
[320325182,1711291419052,-1394.32261544,0.00019899,2]
[320325183,1711291419073,-300.0,0.00019899,2]
[320325184,1711291419095,-300.0,0.00019899,2]
[320325185,1711291419117,-300.0,0.00019899,2]
[320325186,1711291419138,-300.0,0.00019899,2]
[320325187,1711291419160,-373.46670002,0.00019899,2]
[320325188,1711291419181,-197.8992234,0.00019899,2]
[320325189,1711291419202,-254.15087228,0.00019899,2]
[320325190,1711291419224,-168.18427477,0.00019899,2]
[320325191,1711291419246,-1394.32261544,0.00019899,2]
[320325192,1711291419267,-1394.32261544,0.00019899,2]
[320325193,1711291419289,-1394.32261544,0.00019899,2]
[320325194,1711291419314,-1394.32261544,0.000199,2]
[320325195,1711291419339,-1394.32261544,0.000199,2]
[320325196,1711291419362,-9100.09049631,0.000199,2]
[320325197,1711291419385,-479.0,0.000199,2]
[320325198,1711291419408,-5800.0,0.000199,2]
[320325199,1711291419430,-989.3685274,0.000199,2]
[320325200,1711291419452,-151.78850355,0.000199,2]
[320325201,1711291419474,-316.87969641,0.000199,2]
[320325202,1711291419495,-1394.32261544,0.000199,2]
[320325203,1711291419517,-23839.78556426,0.000199,2]
[320325204,1711291419539,-24584.51344371,0.000199,2]
[320325205,1711291419560,-197.8992234,0.000199,2]
[320325206,1711291419581,-254.15087228,0.000199,2]
[320325207,1711291419604,-206.91498483,0.000199,2]
[320325208,1711291419625,-180.0,0.00019914,2]
[320325209,1711291419646,-175.96604202,0.00019925,2]
[320325210,1711291419669,-150.0,0.00019928,2]
[320325211,1711291419691,-161.09753421,0.00019949,2]
[320325212,1711291419713,-150.0,0.00019955,2]
[320325213,1711291419736,-150.0,0.00019956,2]
[320325214,1711291419758,-150.0,0.00019967,2]
[320325215,1711291419780,-150.0,0.00019983,2]
[320325216,1711291419803,-150.0,0.00019986,2]
[320325217,1711291419825,-154.88236009,0.00019986,2]
[320325218,1711291419848,-2701.6646776,0.0001999,2]
[320325219,1711291419870,-2000.0,0.00019996,2]
[320325220,1711291419892,-200.0,0.00019996,2]
[320325221,1711291419913,-300.02,0.00019997,2]
[320325222,1711291419934,-729.73615748,0.00019997,2]
[320325223,1711291419961,-6775396.42869449,0.00019998,2]
[320325224,1711291419983,-155.26075523,0.00019998,2]
[320325225,1711291420005,-7983.98892152,0.00019998,2]
[320325226,1711291420027,-286.41336397,0.00019999,2]
[320325227,1711291420049,-7672.53278783,0.00019999,2]
[320325228,1711291420071,-500.0,0.00019999,2]
[320325229,1711291420096,-1826.71,0.00019999,2]
[320325230,1711291420121,-12859040.93455989,0.0002,2]
[320325231,1711291479741,2528.18498704,0.00015,2]
[320325233,1711291495720,2528.18498704,0.00015,2]
[320325234,1711291513713,2374.17609335,0.00015,2]
[320325235,1711291517244,363.7661971,0.00015,2]
[320325236,1711291517852,861.9836663,0.00015,2]
[320325237,1711291519569,341.82175375,0.00015,2]
[320325238,1711291520161,155.0,0.00015,2]
[320325239,1711291520704,155.0,0.00015,2]
[320325240,1711291523194,7465.98897324,0.00015,2]
[320325241,1711291523823,328.45671859,0.00015,2]
[320325242,1711291524303,317.62926319,0.00015,2]
[320325243,1711291525178,19571.81344936,0.00015,2]
[320325244,1711291525645,286.90950873,0.00015,2]
[320325245,1711291525704,406.30770755,0.0001455,2]
[320325246,1711291526178,178.71202553,0.00015,2]
[320325247,1711291527663,848449.1247359,0.00015,2]
[320325248,1711291527685,175487.66812169,0.00015,2]
[320325249,1711291528887,155.0,0.00015,2]
[320325250,1711291531242,363.7661971,0.00015,2]
[320325251,1711291531558,295.29330756,0.00015,2]
[320325252,1711291531841,863.32120998,0.00015,2]
[320325253,1711291536299,317.62926319,0.00015,2]
[320325266,1711291537395,7465.98897324,0.00015,2]
[320325267,1711291537565,343.15954798,0.00015,2]
[320325268,1711291538694,155.16822264,0.00015,2]
[320325269,1711291539654,287.53386216,0.00015,2]
[320325270,1711291540170,155.0,0.00015,2]
[320325271,1711291542179,178.66942373,0.00015,2]
[320325272,1711291543184,19571.81344936,0.00015,2]
[320325273,1711291543614,328.37316983,0.00015,2]
[320325274,1711291543714,406.19755191,0.0001455,2]
[320325275,1711291544903,155.0,0.00015,2]
[320325276,1711291545649,1023936.79285759,0.00015,2]
[320325277,1711291549831,295.29330756,0.00015,2]
[320325278,1711291551241,513.16629023,0.00015,2]
[320325279,1711291556298,317.62926319,0.00015,2]
[320325280,1711291558164,155.15066051,0.00015,2]
[320325281,1711291559183,7465.98897324,0.00015,2]
[320325282,1711291565569,295.29330756,0.00015,2]
[320325283,1711291565648,760491.10303975,0.00015,2]
[320325284,1711291565673,263445.68981784,0.00015,2]
[320325285,1711291569191,19571.81344936,0.00015,2]
[320325286,1711291570895,155.0,0.00015,2]
[320325287,1711291574307,317.62926319,0.00015,2]
[320325288,1711291575214,6446.68885846,0.00015,2]
[320325289,1711291575909,170.67204046,0.00014941,2]
[320325290,1711291581567,295.29330756,0.00015,2]
[320325291,1711291585657,399597.21326313,0.00015,2]
[320325292,1711291585682,624339.57959446,0.00015,2]
[320325293,1711291591172,19571.81344936,0.00015,2]
[320325294,1711291592895,233.98382504,0.00015,2]
[320325295,1711291596012,317.62926319,0.00015,2]
[320325296,1711291601572,295.29330756,0.00015,2]
[320325297,1711291605895,1023936.79285759,0.00015,2]
[320325298,1711291610307,318.51315199,0.00015,2]
[320325299,1711291613191,19571.81344936,0.00015,2]
[320325300,1711291617619,295.6235744,0.00015,2]
[320325301,1711291621654,311118.95752705,0.00015,2]
[320325751,1711291831525,-436.91298742,0.00013982,2]
[320325752,1711291831537,-234.87423799,0.00013983,2]
[320325753,1711291831548,-234.87423797,0.00013984,2]
[320325754,1711291831560,-234.87423797,0.00013985,2]
[320325755,1711291831571,-406.02897819,0.00014011,2]
[320325756,1711291831581,-2000.0,0.00014011,2]
[320325757,1711291831593,-1236.69244334,0.00014011,2]
[320325758,1711291831603,-360.53117712,0.00014012,2]
[320325759,1711291831616,-571.52828288,0.00014012,2]
[320325760,1711291831627,-484.31503574,0.00014083,2]
[320325761,1711291831638,-4004.14613871,0.00014083,2]
[320325762,1711291831650,-5356.2287349,0.00014083,2]
[320325763,1711291831660,-959.60749022,0.00014084,2]
[320325764,1711291831670,-178.29181519,0.00014084,2]
[320325765,1711291831680,-2201.32860966,0.00014085,2]
[320325766,1711291831690,-445.31808771,0.00014085,2]
[320325767,1711291831701,-958.320305,0.00014085,2]
[320325768,1711291831741,-993.79654298,0.00014085,2]
[320325769,1711291831754,-2746.94080164,0.00014085,2]
[320325770,1711291831765,-400.0,0.00014085,2]
[320325771,1711291831775,-3418.69749291,0.00014086,2]
[320325772,1711291831786,-211.68,0.00014264,2]
[320325773,1711291831797,-150.0,0.00014799,2]
[320325774,1711291831807,-925.83,0.00014884,2]
[320325775,1711291831818,-170.39915139,0.000149,2]
[320325776,1711291831830,-354.42,0.000149,2]
[320325777,1711291831841,-183.13737393,0.0001499,2]
[320325778,1711291831852,-35502.93214952,0.00015,2]
[320325779,1711291831881,-625.79409021,0.00015,2]
[320325780,1711291831925,-1654.38646507,0.00015,2]
[320325781,1711291831938,-65286.0000001,0.00015,2]
[320325782,1711291831957,-339.49342103,0.00015,2]
[320325783,1711291831970,-1259.03570238,0.00015,2]
[320325785,1711291831984,-329.66712704,0.00015,2]
[320325786,1711291831997,-11978.43717883,0.00015,2]
[320325787,1711291832160,-10736.00000027,0.00015,2]
[320325811,1711291837515,-38913.56314605,0.00015,2]
[320325812,1711291837529,-17863.16813942,0.00015,2]
[320325813,1711291837542,-2414.30554543,0.00015,2]
[320325814,1711291837575,-6700.0,0.00015,2]
[320325815,1711291837587,-3593.85428938,0.00015,2]
[320325816,1711291837598,-350.62343762,0.00015,2]
[320325817,1711291837628,-1260.837,0.00015,2]
[320325818,1711291837694,-403.72621873,0.00015,2]
[320325819,1711291837707,-17397.14716926,0.00015,2]
[320325820,1711291837728,-1727.59763929,0.00015,2]
[320325821,1711291837739,-6647.46500914,0.00015,2]
[320325822,1711291837760,-636.75,0.00015,2]
[320325823,1711291837801,-319.02719506,0.00015,2]
[320325824,1711291837813,-438.066694,0.00015,2]
[320325825,1711291837824,-3027.64169352,0.00015,2]
[320325826,1711291837854,-683.60578614,0.00015,2]
[320325829,1711291837865,-28786.77208005,0.00015,2]
[320325986,1711291839791,-338882.37679179,0.00015,2]
[320325995,1711291839826,-2203.23593061,0.00015,2]
[320325999,1711291839837,-3978.74159999,0.00015,2]
[320326010,1711291839884,-610.85,0.00015,2]
[320326013,1711291839896,-108266.73383061,0.00015,2]
[320326016,1711291839906,-19571.81344936,0.00015,2]
[320326019,1711291839915,-323.11779733,0.00015037,2]
[320326022,1711291839925,-176.19,0.00015218,2]
[320326025,1711291839934,-372.62640433,0.00015998,2]
[320326028,1711291839944,-925.83,0.00017147,2]
[320326031,1711291839953,-170.39915139,0.000174,2]
[320326034,1711291839963,-367.551392,0.00017534,2]
[320326037,1711291839972,-594.24,0.000176,2]
[320326041,1711291839982,-156.0,0.00017835,2]
[320326044,1711291839990,-152.0,0.00017835,2]
[320326047,1711291839999,-157.0,0.00017835,2]
[320326050,1711291840009,-177.26296323,0.000179,2]
[320326053,1711291840018,-177.26296321,0.000179,2]
[320326055,1711291840027,-174.51,0.00017907,2]
[320326059,1711291840037,-301.51,0.00017941,3]
[320326062,1711291840048,-367.551392,0.00018356,2]
[320326066,1711291840057,-153.70671872,0.00018555,2]
[320326068,1711291840067,-152.91709921,0.00018591,2]
[320326071,1711291840076,-150.89202832,0.00018632,2]
[320326074,1711291840085,-154.19957694,0.00018636,2]
[320326076,1711291840094,-153.70671872,0.0001869,2]
[320326078,1711291840103,-158.09371511,0.00018692,2]
[320326080,1711291840112,-157.0,0.00018747,2]
[320326082,1711291840121,-1256.16,0.00018747,2]
[320326084,1711291840130,-577.37557755,0.00018799,2]
[320326086,1711291840139,-577.37557755,0.00018863,2]
[320326088,1711291840149,-164.76,0.0001887,2]
[320326090,1711291840158,-153.70671872,0.00018919,2]
[320326092,1711291840168,-1467.60065329,0.00019,2]
[320326094,1711291840177,-1250.0,0.00019,3]
[320326096,1711291840187,-176.19,0.00019023,2]
[320326098,1711291840196,-153.70671872,0.00019029,2]
[320326100,1711291840206,-250.0,0.00019068,2]
[320326102,1711291840215,-644.91242417,0.00019071,2]
[320326104,1711291840224,-152.18428222,0.0001916,2]
[320326106,1711291840233,-500.0,0.00019178,2]
[320326108,1711291840243,-500.0,0.00019178,2]
[320326110,1711291840252,-1231.2,0.00019178,2]
[320326112,1711291840261,-500.0,0.00019178,2]
[320326114,1711291840270,-500.0,0.00019178,2]
[320326116,1711291840279,-500.0,0.00019178,2]
[320326118,1711291840288,-500.0,0.00019178,2]
[320326120,1711291840297,-500.0,0.00019178,2]
[320326122,1711291840306,-500.0,0.00019178,2]
[320326124,1711291840316,-367.551392,0.00019178,2]
[320326126,1711291840325,-163.89,0.0001918,2]
[320326128,1711291840334,-163.89,0.0001918,2]
[320326130,1711291840343,-163.89,0.0001918,2]
[320326132,1711291840353,-150.89202832,0.00019206,2]
[320326134,1711291840362,-163.89,0.00019236,2]
[320326136,1711291840371,-4883.67092102,0.00019246,2]
[320326139,1711291840393,-273.7432171,0.00019246,2]
[320326142,1711291840404,-5436.61609901,0.00019246,2]
[320326144,1711291840416,-526.16246152,0.00019246,2]
[320326205,1711291842573,-1267.82998508,0.00014998,2]
[320326207,1711291842585,-538.79284284,0.00014998,2]
[320326208,1711291842596,-330.0772447,0.00014998,2]
[320326209,1711291842631,-2320.42009386,0.00014998,2]
[320326210,1711291842641,-224.99,0.000179,2]
[320326211,1711291842651,-589.12,0.0001803,2]
[320326212,1711291842660,-500.0,0.00019178,2]
[320326213,1711291842669,-491.17309957,0.00019246,2]
[320326214,1711291842681,-2105.67125212,0.00019246,2]
[320326215,1711291842801,-569.85819587,0.00019246,2]
[320326216,1711291842909,-2715.87504992,0.00019246,2]
[320326217,1711291842921,-7408.73437741,0.00019246,2]
[320326218,1711291842933,-1280.35089127,0.00019246,2]
[320326219,1711291842945,-3182.67931129,0.00019246,2]
[320326220,1711291842958,-19743.38384977,0.00019246,2]
[320326225,1711291845672,-227.76583071,0.00018029,2]
[320326226,1711291845682,-445.17565295,0.00018029,2]
[320326227,1711291845692,-484.31503574,0.00019177,2]
[320326228,1711291845708,-337.55151367,0.00019177,2]
[320326229,1711291845719,-500.0,0.00019178,2]
[320326230,1711291845728,-2853.48574931,0.00019246,2]
[320326231,1711291845747,-14235.15792482,0.00019246,2]
[320326232,1711291845757,-158.70427819,0.00019277,2]
[320326233,1711291845767,-154.19957694,0.00019292,2]
[320326235,1711291845776,-154.19957694,0.00019344,2]
[320326237,1711291845786,-500.0,0.00019346,2]
[320326239,1711291845795,-500.0,0.00019346,2]
[320326241,1711291845804,-500.0,0.00019346,2]
[320326243,1711291845814,-500.0,0.00019346,2]
[320326245,1711291845823,-500.0,0.00019346,2]
[320326248,1711291845833,-500.0,0.00019346,2]
[320326250,1711291845842,-500.0,0.00019346,2]
[320326252,1711291845851,-500.0,0.00019346,2]
[320326254,1711291845860,-504.25779718,0.00019346,2]
[320326256,1711291845870,-500.0,0.00019346,2]
[320326258,1711291845879,-500.0,0.00019346,2]
[320326260,1711291845888,-500.0,0.00019346,2]
[320326262,1711291845897,-500.0,0.00019346,2]
[320326264,1711291845906,-500.0,0.00019346,2]
[320326266,1711291845915,-500.0,0.00019346,2]
[320326268,1711291845925,-500.0,0.00019346,2]
[320326270,1711291845934,-500.0,0.00019346,2]
[320326272,1711291845944,-500.0,0.00019346,2]
[320326274,1711291845953,-500.0,0.00019346,2]
[320326276,1711291845964,-500.0,0.00019346,2]
[320326278,1711291845973,-500.0,0.00019346,2]
[320326280,1711291845982,-500.0,0.00019346,2]
[320326282,1711291845991,-500.0,0.00019346,2]
[320326284,1711291846001,-499.3011792,0.00019346,2]
[320326286,1711291846010,-500.0,0.00019346,2]
[320326288,1711291846020,-500.0,0.00019346,2]
[320326290,1711291846029,-500.0,0.00019346,2]
[320326292,1711291846039,-500.0,0.00019346,2]
[320326294,1711291846048,-500.0,0.00019346,2]
[320326297,1711291846058,-500.0,0.00019346,2]
[320326299,1711291846067,-500.77488151,0.00019346,2]
[320326301,1711291846076,-500.0,0.00019346,2]
[320326303,1711291846086,-503.54626192,0.00019346,2]
[320326305,1711291846095,-500.0,0.00019346,2]
[320326307,1711291846105,-500.0,0.00019346,2]
[320326309,1711291846115,-501.15336674,0.00019346,2]
[320326311,1711291846124,-500.0,0.00019346,2]
[320326313,1711291846134,-500.0,0.00019346,2]
[320326315,1711291846143,-500.0,0.00019346,2]
[320326317,1711291846153,-500.0,0.00019346,2]
[320326319,1711291846162,-500.0,0.00019346,2]
[320326321,1711291846172,-500.0,0.00019346,2]
[320326323,1711291846181,-382.37850997,0.00019346,2]
[320326326,1711291846205,-1088.84869022,0.00019177,2]
[320326329,1711291846219,-413.55,0.00019177,2]
[320326334,1711291846264,-698.92991944,0.00019177,2]
[320326336,1711291846273,-117.62149003,0.00019346,2]
[320326338,1711291846284,-500.0,0.00019346,2]
[320326340,1711291846294,-563.45087045,0.00019346,2]
[320326342,1711291846304,-500.0,0.00019346,2]
[320326344,1711291846314,-500.0,0.00019346,2]
[320326346,1711291846324,-500.0,0.00019346,2]
[320326348,1711291846334,-500.0,0.00019346,2]
[320326350,1711291846345,-500.0,0.00019346,2]
[320326352,1711291846356,-24.84867152,0.00019346,2]
[320326355,1711291846385,-263.25120651,0.00019346,2]
[320326357,1711291846397,-231.59350306,0.00019346,2]
[320326359,1711291846407,-500.0,0.00019346,2]
[320326360,1711291846418,-500.0,0.00019346,2]
[320326362,1711291846428,-500.0,0.00019346,2]
[320326364,1711291846438,-500.0,0.00019346,2]
[320326366,1711291846447,-500.0,0.00019346,2]
[320326367,1711291846457,-500.0,0.00019346,2]
[320326369,1711291846471,-62.68059842,0.00019346,2]
[320326723,1711291854824,-437.31940158,0.00019346,2]
[320326724,1711291854833,-500.0,0.00019346,2]
[320326725,1711291854843,-500.0,0.00019346,2]
[320326726,1711291854854,-500.0,0.00019346,2]
[320326727,1711291854863,-500.0,0.00019346,2]
[320326728,1711291854873,-509.91971065,0.00019346,2]
[320326729,1711291854883,-500.0,0.00019346,2]
[320326730,1711291854893,-500.0,0.00019346,2]
[320326731,1711291854903,-500.0,0.00019346,2]
[320326732,1711291854913,-500.0,0.00019346,2]
[320326733,1711291854922,-500.0,0.00019346,2]
[320326734,1711291854932,-500.0,0.00019346,2]
[320326735,1711291854941,-500.0,0.00019346,2]
[320326736,1711291854951,-504.65174455,0.00019346,2]
[320326737,1711291854961,-500.0,0.00019346,2]
[320326738,1711291854971,-500.0,0.00019346,2]
[320326739,1711291854981,-500.0,0.00019346,2]
[320326740,1711291854990,-500.0,0.00019346,2]